[Event "WSTCC-65 2024"]
[Site "Krakow"]
[Date "2024.07.07"]
[Round "6.17"]
[White "Gibbons, Robert"]
[Black "Hogan, Pat"]
[Result "1/2-1/2"]
[ECO "A48"]
[WhiteElo "1908"]
[BlackElo "1936"]
[Annotator "NA RC"]
[PlyCount "100"]
[EventDate "2024.07.01"]
[EventType "team-tourn"]
[EventCountry "POL"]
[SourceTitle "playchess.com"]
[Source "ChessBase"]
[SourceQuality "1"]
[TimeControl "40/5400+30:1800+30"]

1. d4 {[%emt 0:00:08]} Nf6 {[%emt 0:00:09]} 2. Nf3 {[%emt 0:00:14]} g6 {[%emt 0:00:10]} 3. e3 {[%emt 0:01:08]} Bg7 {[%emt 0:00:11]} 4. Bd3 {[%emt 0:01:54]} O-O {[%emt 0:00:40]} 5. O-O {[%emt 0:00:13]} d6 {[%emt 0:00:26]} 6. Re1 {[%emt 0:00:47]} Nc6 {[%emt 0:01:00]} 7. c3 {[%emt 0:03:00]} e5 {[%emt 0:00:21]} 8. dxe5 {[%emt 0:05:31]} Nxe5 {[%emt 0:00:40]} 9. Nxe5 {[%emt 0:00:56]} dxe5 {[%emt 0:00:02]} 10. Qc2 {[%emt 0:01:05]} c6 {[%emt 0:00:27]} 11. e4 {[%emt 0:04:25]} Qc7 {[%emt 0:01:19]} 12. Be3 {[%emt 0:03:10]} Be6 {[%emt 0:02:45]} 13. Nd2 {[%emt 0:02:27]} Rfd8 {[%emt 0:05:57]} 14. f3 {[%emt 0:07:42]} Rd7 {[%emt 0:03:05]} 15. Bc4 {[%emt 0:06:10]} Rxd2 {[%emt 0:00:58]} 16. Bxd2 {[%emt 0:00:45]} Bxc4 {[%emt 0:00:13]} 17. b3 {[%emt 0:00:28]} Be6 {[%emt 0:00:23]} 18. Be3 {[%emt 0:00:54]} h6 {[%emt 0:01:16]} 19. Rad1 {[%emt 0:00:28]} Bf8 {[%emt 0:02:11]} 20. Rd3 {[%emt 0:06:00]} Nd7 {[%emt 0:05:44]} 21. Kh1 {[%emt 0:00:59]} Nc5 {[%emt 0:00:44]} 22. Rdd1 {[%emt 0:04:01]} a5 {[%emt 0:04:56]} 23. Qf2 {[%emt 0:02:00]} b6 {[%emt 0:05:56]} 24. Rd2 {[%emt 0:00:29]} Rd8 {[%emt 0:00:58]} 25. Red1 {[%emt 0:00:09]} Rxd2 {[%emt 0:00:52]} 26. Rxd2 {[%emt 0:00:03]} Kh7 {[%emt 0:01:47]} 27. g4 {[%emt 0:07:38]} Nd7 {[%emt 0:01:16]} 28. Qh4 {[%emt 0:01:09]} f6 {[%emt 0:02:05]} 29. g5 {[%emt 0:01:22]} fxg5 {[%emt 0:00:57]} 30. Bxg5 {[%emt 0:00:17]} Qc8 {[%emt 0:05:21]} 31. Rd6 {[%emt 0:06:37]} Qe8 {[%emt 0:00:58]} 32. Rxc6 {[%emt 0:00:38]} h5 {[%emt 0:01:39]} 33. Qg3 {[%emt 0:09:49]} Bh6 {[%emt 0:01:14]} 34. h4 {[%emt 0:01:37]} Bxg5 {[%emt 0:00:39]} 35. hxg5 {[%emt 0:00:03]} Qf7 {[%emt 0:04:19]} 36. Kg2 {[%emt 0:00:41]} a4 {[%emt 0:00:54]} 37. c4 axb3 38. axb3 {[%emt 0:02:09]} Qe7 {[%emt 0:04:23]} 39. f4 {[%emt 0:03:26]} exf4 {[%emt 0:00:35]} 40. Qxf4 {[%emt 0:00:44]} Bg4 {[%emt 0:01:04]} 41. Rd6 {[%emt 0:33:33]} Kg7 {[%emt 0:33:02]} 42. Rc6 {[%emt 0:08:50]} Qa3 {[%emt 0:03:40]} 43. Rc7 {[%emt 0:01:13]} Qb2+ {[%emt 0:01:06]} 44. Kg1 {[%emt 0:01:03]} Qb1+ {[%emt 0:00:36]} 45. Kg2 {[%emt 0:01:05]} Qc2+ {[%emt 0:00:24]} 46. Kg1 {[%emt 0:00:28]} Qd1+ {[%emt 0:01:07]} 47. Kg2 {[%emt 0:00:38]} Qe2+ {[%emt 0:00:16]} 48. Kg1 {[%emt 0:00:44]} Qd1+ {[%emt 0:00:55]} 49. Kg2 {[%emt 0:00:21]} Qe2+ {[%emt 0:00:10]} 50. Kg1 {[%emt 0:00:25]} Qd1+ {[%emt 0:00:05]} 1/2-1/2

[Event "WSTCC-65 2024"]
[Site "Krakow"]
[Date "2024.07.07"]
[Round "6.18"]
[White "Rooze, Jan"]
[Black "Kasperek, Wieslaw"]
[Result "1-0"]
[ECO "B40"]
[WhiteElo "2222"]
[BlackElo "2009"]
[Annotator "TA"]
[PlyCount "99"]
[EventDate "2024.07.01"]
[EventType "team-tourn"]
[EventCountry "POL"]
[SourceTitle "playchess.com"]
[Source "ChessBase"]
[SourceQuality "1"]
[TimeControl "40/5400+30:1800+30"]

{[%evp 11,99,17,51,47,56,41,62,63,76,63,76,42,66,72,93,66,64,58,66,65,86,37,25,35,39,31,27,0,0,0,0,-8,0,-3,0,-9,0,0,36,16,20,10,33,0,0,0,0,0,8,0,41,29,31,7,29,29,29,29,27,14,147,100,75,34,52,49,83,47,141,133,161,139,170,161,225,186,180,166,170,79,784,745,819,818,29994,29995,29996,29994,29996,29996]} 1. e4 {[%emt 0:00:09]} c5 {[%emt 0:00:13]} 2. Nf3 {[%emt 0:00:06]} e6 {[%emt 0:01:12]} 3. c3 {[%emt 0:00:07]} Nc6 {[%emt 0:00:27]} 4. d4 {[%emt 0:01:01]} cxd4 {[%emt 0:00:13]} 5. cxd4 {[%emt 0:00:06]} d5 {[%emt 0:00:08]} 6. e5 {[%emt 0:00:24]} Bd7 {[%emt 0:04:06]} 7. Nc3 {[%emt 0:06:33]} Bb4 {[%emt 0:01:29]} 8. Bd2 {[%emt 0:05:02]} Bxc3 {[%emt 0:08:20]} 9. Bxc3 {[%emt 0:00:17] White is slightly better.} Nge7 {[%emt 0:00:16][%cal Ob7b5]} 10. Bd3 {[%emt 0:02:04]} h6 {[%emt 0:03:19]} 11. h4 {[%emt 0:06:24]} Qb6 {[%emt 0:01:12]} 12. Qd2 {[%emt 0:04:55]} a5 {[%emt 0:02:19]} 13. O-O {[%emt 0:19:55]} O-O {[%emt 0:05:06]} 14. a3 {[%emt 0:01:47]} f6 {[%emt 0:00:19]} 15. exf6 {[%emt 0:00:54]} Rxf6 {[%emt 0:00:15] [#]} 16. Ne5 {[%emt 0:02:06]} ({White should play} 16. b4 $1 $16) 16... Nxe5 $14 {[%emt 0:01:12]} 17. dxe5 {[%emt 0:00:54]} Rf7 {[%emt 0:00:28] [#]} 18. Bd4 $1 {[%emt 0:03:13] A strong pair of Bishops.} Qd8 {[%emt 0:00:48]} (18... Qxd4 $2 19. Bh7+ Kxh7 20. Qxd4 $18) 19. Rac1 {[%emt 0:03:20]} Nf5 {[%emt 0:00:59]} 20. Bxf5 {[%emt 0:00:10]} Rxf5 {[%emt 0:00:10]} 21. g3 {[%emt 0:00:11]} Bb5 {[%emt 0:00:53]} 22. Rfe1 {[%emt 0:01:02][%cal Bf1e1,Be1e3,Be3c3,Bc3c5,Bc5a5][%mdl 32]} Bc4 {[%emt 0:00:10]} 23. a4 {[%emt 0:07:19]} Qe7 {[%emt 0:01:09]} 24. Re3 {[%emt 0:01:08]} Qd8 {[%emt 0:07:03]} 25. b3 {[%emt 0:01:04] Black is weak on the dark squares} Ba6 {[%emt 0:00:10]} 26. Rc5 {[%emt 0:01:08][%cal Oe3c3]} Rc8 {[%emt 0:00:45]} 27. Rec3 {[%emt 0:01:26]} (27. Qxa5 $2 {loses.} Qxa5 28. Rxa5 Rc1+ 29. Kg2 Rd1 $19) 27... Rxc5 {[%emt 0:00:42]} 28. Rxc5 {[%emt 0:00:33][%cal Og1g2]} Qe8 {[%emt 0:00:32]} 29. Qd1 {[%emt 0:08:01]} Qg6 {[%emt 0:05:41]} 30. Rxa5 {[%emt 0:03:27]} Rf7 {[%emt 0:00:19]} ({Avoid the trap} 30... Qxg3+ $2 31. fxg3 Kh8 32. Qc2 (32. Rxa6 bxa6 33. Qc2 Rf8 $18) 32... Rf1+ 33. Kh2 $18) 31. Rc5 {[%emt 0:00:29]} Qe4 {[%emt 0:00:10]} 32. Rc8+ {[%emt 0:01:24]} Rf8 {[%emt 0:00:11]} (32... Kh7 {keeps more tension.} 33. f4 Be2 34. Qc2 Bd3) 33. Rxf8+ {[%emt 0:02:23]} Kxf8 $11 {[%emt 0:00:09][%mdl 4096] Endgame. KQB-KQB} 34. f3 {[%emt 0:01:16]} Qg6 {[%emt 0:02:32]} 35. Kf2 {[%emt 0:00:43]} Qe8 {[%emt 0:00:38] [#]} (35... h5 $11 {remains equal.}) 36. b4 {[%emt 0:01:00]} (36. Qc2 $142 $1) 36... Bc4 $16 {[%emt 0:00:11]} 37. b5 {[%emt 0:00:17]} Kg8 {[%emt 0:00:52]} 38. Qb1 {[%emt 0:01:53]} Qd7 {[%emt 0:03:51]} 39. g4 {[%emt 0:01:27] White is more active.} Qe8 {[%emt 0:00:45]} (39... Qd8 $14) 40. h5 {[%emt 0:01:34]} Qe7 {[%emt 0:01:03]} 41. Kg3 {[%emt 0:31:11]} Qe8 {[%emt 0:31:54]} 42. Qb4 {[%emt 0:03:57]} Kh7 {[%emt 0:01:41]} (42... Be2 {was called for.} 43. Qd2 Bc4) 43. Qc5 {[%emt 0:02:02]} Qd7 {[%emt 0:00:21]} 44. f4 {[%emt 0:00:00][%cal Bf3f4,Bf4g5][%mdl 32] Strongly threatening Qd6.} Bd3 {[%emt 0:00:00]} 45. Qf8 {[%emt 0:00:00]} (45. Bg1 $18 {is more deadly.}) 45... Be4 $2 {[%emt 0:00:00][%mdl 8192] Loses the game.} (45... Qc7 $16) 46. g5 $18 {[%emt 0:00:00]} hxg5 {[%emt 0:00:00]} 47. fxg5 {[%emt 0:00:00]} g6 {[%emt 0:00:00]} 48. h6 {[%emt 0:00:00] White mates.} Bc2 {[%emt 0:00:00]} 49. a5 {[%emt 0:00:00]} Ba4 {[%emt 0:00:00]} 50. b6 {[%emt 0:00:00] Weighted Error Value: White=0.14 (very precise) /Black=0.35.  Loses game:     	---       	Black=1      Mistake:       	White=3     	Black=3      Inaccurate:     	White=5     	Black=3      OK:         	White=10    	Black=12     Best:        	White=2     	Black=2} 1-0

[Event "WSTCC-65 2024"]
[Site "Krakow"]
[Date "2024.07.07"]
[Round "6.18"]
[White "Harding, Tim D"]
[Black "Booth, Anthony"]
[Result "1-0"]
[ECO "A29"]
[WhiteElo "1945"]
[BlackElo "1742"]
[Annotator "NA RC"]
[PlyCount "93"]
[EventDate "2024.07.01"]
[EventType "team-tourn"]
[EventCountry "POL"]
[SourceTitle "playchess.com"]
[Source "ChessBase"]
[SourceQuality "1"]
[TimeControl "40/5400+30:1800+30"]

1. c4 {[%emt 0:00:07]} e5 {[%emt 0:00:13]} 2. Nc3 {[%emt 0:00:11]} Nf6 {[%emt 0:00:42]} 3. Nf3 {[%emt 0:00:09]} Nc6 {[%emt 0:00:59]} 4. g3 {[%emt 0:00:18]} Bb4 {[%emt 0:00:54]} 5. Nd5 {[%emt 0:00:44]} O-O {[%emt 0:01:22]} 6. Bg2 {[%emt 0:03:31]} Re8 {[%emt 0:00:42]} 7. Nxb4 {[%emt 0:00:43]} Nxb4 {[%emt 0:00:07]} 8. O-O {[%emt 0:00:10]} d6 {[%emt 0:05:57]} 9. d3 {[%emt 0:02:06]} Nc6 {[%emt 0:03:17]} 10. b3 {[%emt 0:06:19]} Nd4 {[%emt 0:20:46]} 11. Re1 {[%emt 0:12:15]} Nxf3+ {[%emt 0:04:29]} 12. exf3 {[%emt 0:01:14]} c6 {[%emt 0:02:34]} 13. Bb2 {[%emt 0:03:03]} Bf5 {[%emt 0:04:34]} 14. Qd2 {[%emt 0:01:01]} Nd7 {[%emt 0:01:35]} 15. d4 {[%emt 0:11:59]} Qc7 {[%emt 0:08:43]} 16. Qg5 {[%emt 0:05:50]} Bg6 {[%emt 0:01:04]} 17. f4 {[%emt 0:01:22]} f6 {[%emt 0:02:43]} 18. Qg4 {[%emt 0:05:50]} f5 {[%emt 0:05:08]} 19. Qf3 {[%emt 0:01:26]} e4 {[%emt 0:00:35]} 20. Qc3 {[%emt 0:00:12]} Nf6 {[%emt 0:01:43]} 21. Rad1 {[%emt 0:04:41]} d5 {[%emt 0:04:07]} 22. h3 {[%emt 0:01:45]} Rac8 {[%emt 0:00:39]} 23. Re3 {[%emt 0:00:31]} Re6 {[%emt 0:10:09]} 24. Rc1 {[%emt 0:00:38]} Bf7 {[%emt 0:01:10]} 25. Bf1 {[%emt 0:00:33]} Ree8 {[%emt 0:01:30]} 26. Ba3 {[%emt 0:01:19]} b6 {[%emt 0:00:59]} 27. Qd2 {[%emt 0:01:01]} c5 {[%emt 0:02:23]} 28. dxc5 {[%emt 0:05:30]} bxc5 {[%emt 0:04:30]} 29. cxd5 {[%emt 0:00:23]} Qd6 {[%emt 0:00:49]} 30. Rec3 {[%emt 0:00:47]} Nxd5 {[%emt 0:01:30]} 31. Rxc5 {[%emt 0:01:01]} Rxc5 32. Bxc5 Qd7 {[%emt 0:02:20]} 33. Bc4 {[%emt 0:01:50]} Rd8 {[%emt 0:00:47]} 34. Rd1 {[%emt 0:00:31]} Nb6 {[%emt 0:02:37]} 35. Bxf7+ {[%emt 0:00:42]} Kxf7 {[%emt 0:00:20]} 36. Qxd7+ {[%emt 0:00:07]} Rxd7 37. Rxd7+ Nxd7 {[%emt 0:01:23]} 38. Bxa7 {[%emt 0:00:39]} Ke6 {[%emt 0:00:35]} 39. Kf1 {[%emt 0:00:18]} Kd5 {[%emt 0:00:09]} 40. Ke2 {[%emt 0:00:08]} Nc5 {[%emt 0:00:56]} 41. Bxc5 {[%emt 0:30:26]} Kxc5 {[%emt 0:30:03]} 42. Ke3 {[%emt 0:00:16]} Kb4 {[%emt 0:00:23]} 43. a4 {[%emt 0:00:16]} g6 {[%emt 0:00:39]} 44. f3 {[%emt 0:00:30]} exf3 {[%emt 0:00:15]} 45. Kxf3 {[%emt 0:00:04]} h6 {[%emt 0:01:08]} 46. Ke3 {[%emt 0:00:10]} Kc5 {[%emt 0:00:31]} 47. a5 {[%emt 0:00:07]} 1-0

[Event "WSTCC-65 2024"]
[Site "Krakow"]
[Date "2024.07.07"]
[Round "6.19"]
[White "Kusina, Jan"]
[Black "Van Herck, Marcel"]
[Result "1/2-1/2"]
[ECO "A46"]
[WhiteElo "1969"]
[BlackElo "1942"]
[Annotator "NA RC"]
[PlyCount "69"]
[EventDate "2024.07.01"]
[EventType "team-tourn"]
[EventCountry "POL"]
[SourceTitle "playchess.com"]
[Source "ChessBase"]
[SourceQuality "1"]
[TimeControl "40/5400+30:1800+30"]

1. d4 {[%emt 0:00:03]} Nf6 {[%emt 0:00:31]} 2. Nf3 {[%emt 0:00:19]} e6 {[%emt 0:01:09]} 3. Bg5 {[%emt 0:00:34]} d5 {[%emt 0:02:17]} 4. e3 {[%emt 0:00:32]} Nbd7 {[%emt 0:00:36]} 5. Bd3 {[%emt 0:01:42]} c6 {[%emt 0:08:36]} 6. c3 {[%emt 0:01:22]} Bd6 {[%emt 0:01:10]} 7. Nbd2 {[%emt 0:00:45]} Qc7 {[%emt 0:02:02]} 8. e4 {[%emt 0:10:17]} dxe4 {[%emt 0:00:15]} 9. Nxe4 {[%emt 0:00:15]} Nxe4 {[%emt 0:00:08]} 10. Bxe4 {[%emt 0:00:10]} h6 {[%emt 0:05:46]} 11. Bh4 {[%emt 0:00:44]} f5 {[%emt 0:01:27]} 12. Bc2 {[%emt 0:05:09]} g5 {[%emt 0:00:08]} 13. Qe2 {[%emt 0:04:38]} Nf8 {[%emt 0:00:13]} 14. Bxf5 {[%emt 0:02:53]} gxh4 {[%emt 0:00:07]} 15. Nxh4 {[%emt 0:00:37]} Bd7 {[%emt 0:00:20]} 16. Ng6 {[%emt 0:03:14]} Nxg6 {[%emt 0:00:30]} 17. Bxg6+ {[%emt 0:00:02]} Ke7 {[%emt 0:04:08]} 18. g3 {[%emt 0:01:14]} Rag8 {[%emt 0:01:36]} 19. Qe4 {[%emt 0:05:55]} Kd8 {[%emt 0:01:21]} 20. O-O-O {[%emt 0:05:37]} Qa5 {[%emt 0:02:44]} 21. Qh4+ {[%emt 0:02:10]} Be7 {[%emt 0:03:41]} 22. Qh5 {[%emt 0:01:03]} Qxa2 {[%emt 0:21:45]} 23. Rhe1 {[%emt 0:02:22]} Bd6 {[%emt 0:00:33]} 24. Bb1 {[%emt 0:03:50]} Qd5 {[%emt 0:00:17]} 25. Qe2 {[%emt 0:00:55]} Kc7 {[%emt 0:05:55]} 26. c4 {[%emt 0:04:28]} Qg5+ {[%emt 0:02:02]} 27. f4 {[%emt 0:00:36]} Qf6 {[%emt 0:00:05]} 28. c5 {[%emt 0:00:41]} Bxf4+ {[%emt 0:07:57]} 29. gxf4 {[%emt 0:00:18]} Qxf4+ {[%emt 0:00:05]} 30. Qd2 {[%emt 0:00:22]} Qxd2+ {[%emt 0:02:33]} 31. Rxd2 {[%emt 0:04:04]} Rg4 {[%emt 0:00:52]} 32. Ba2 {[%emt 0:00:57]} Rd8 {[%emt 0:04:18]} 33. Kc2 {[%emt 0:00:40]} Bc8 {[%emt 0:03:02]} 34. Kc3 {[%emt 0:00:30]} b6 {[%emt 0:02:05]} 35. cxb6+ {[%emt 0:19:27]} 1/2-1/2

[Event "WSTCC-65 2024"]
[Site "Krakow"]
[Date "2024.07.07"]
[Round "6.19"]
[White "Cooper, Nigel"]
[Black "Matthews, Gabriel"]
[Result "1/2-1/2"]
[ECO "A45"]
[WhiteElo "1662"]
[BlackElo "1917"]
[Annotator "NA RC"]
[PlyCount "80"]
[EventDate "2024.07.01"]
[EventType "team-tourn"]
[EventCountry "POL"]
[SourceTitle "playchess.com"]
[Source "ChessBase"]
[SourceQuality "1"]
[TimeControl "40/5400+30:1800+30"]

1. d4 {[%emt 0:00:02]} Nf6 {[%emt 0:00:28]} 2. Nc3 {[%emt 0:00:02]} d5 {[%emt 0:00:38]} 3. Bf4 {[%emt 0:00:02]} e6 {[%emt 0:02:35]} 4. Nb5 {[%emt 0:00:07]} Na6 {[%emt 0:01:10]} 5. e3 {[%emt 0:00:03]} c6 {[%emt 0:04:24]} 6. Nc3 {[%emt 0:00:03]} Be7 {[%emt 0:03:11]} 7. Nf3 {[%emt 0:00:13]} O-O {[%emt 0:01:00]} 8. g4 {[%emt 0:03:01]} c5 {[%emt 0:09:53]} 9. Bd3 {[%emt 0:11:07]} Nb4 {[%emt 0:02:38]} 10. h4 {[%emt 0:09:01]} Nxd3+ {[%emt 0:04:26]} 11. Qxd3 {[%emt 0:00:29]} Nxg4 {[%emt 0:05:32]} 12. Rg1 {[%emt 0:00:29]} f5 {[%emt 0:01:32]} 13. Ne5 cxd4 {[%emt 0:06:28]} 14. exd4 {[%emt 0:07:33]} Nxe5 {[%emt 0:02:44]} 15. Bxe5 {[%emt 0:01:43]} Bf6 {[%emt 0:01:03]} 16. Qg3 {[%emt 0:02:54]} Rf7 {[%emt 0:05:38]} 17. O-O-O {[%emt 0:01:47]} Bd7 {[%emt 0:05:15]} 18. Ne2 {[%emt 0:05:01]} Bxh4 {[%emt 0:06:25]} 19. Qxg7+ {[%emt 0:16:44]} Rxg7 {[%emt 0:01:40]} 20. Rxg7+ {[%emt 0:00:17]} Kf8 {[%emt 0:03:30]} 21. Rdg1 {[%emt 0:00:13]} Bf6 {[%emt 0:09:54]} 22. Rg8+ {[%emt 0:12:42]} Kf7 {[%emt 0:01:55]} 23. Rxd8 {[%emt 0:00:32]} Rxd8 {[%emt 0:00:15]} 24. Bxf6 {[%emt 0:07:19]} Kxf6 {[%emt 0:00:11]} 25. Nf4 {[%emt 0:00:15]} Be8 {[%emt 0:05:54]} 26. Rh1 {[%emt 0:01:32]} Bg6 {[%emt 0:01:02]} 27. Rh6 {[%emt 0:00:56]} Rg8 {[%emt 0:03:13]} 28. Nxg6 {[%emt 0:02:49]} hxg6 {[%emt 0:00:13]} 29. f4 {[%emt 0:00:12]} Kg7 {[%emt 0:01:22]} 30. Rh3 {[%emt 0:01:29]} g5 {[%emt 0:01:50]} 31. fxg5 {[%emt 0:00:25]} Kg6 {[%emt 0:01:53]} 32. Kd2 {[%emt 0:00:33]} f4 {[%emt 0:00:36]} 33. Rh6+ {[%emt 0:00:23]} Kxg5 {[%emt 0:02:11]} 34. Rxe6 {[%emt 0:00:12]} Rh8 {[%emt 0:01:50]} 35. Re5+ {[%emt 0:00:39]} Kg4 {[%emt 0:00:09]} 36. Rxd5 {[%emt 0:01:56]} Rh2+ {[%emt 0:00:29]} 37. Kd3 {[%emt 0:02:21]} Rh3+ {[%emt 0:01:15]} 38. Ke2 {[%emt 0:03:15]} Rh2+ {[%emt 0:00:40]} 39. Kd3 {[%emt 0:00:21]} Rh3+ {[%emt 0:00:38]} 40. Ke2 {[%emt 0:00:20]} Rh2+ 1/2-1/2

[Event "WSTCC-65 2024"]
[Site "Krakow"]
[Date "2024.07.07"]
[Round "6.20"]
[White "Aragones-Melhem, Georgy"]
[Black "Turecki, Stanislaw"]
[Result "0-1"]
[ECO "B51"]
[WhiteElo "2079"]
[BlackElo "1873"]
[Annotator "NA RC"]
[PlyCount "92"]
[EventDate "2024.07.01"]
[EventType "team-tourn"]
[EventCountry "POL"]
[SourceTitle "playchess.com"]
[Source "ChessBase"]
[SourceQuality "1"]
[TimeControl "40/5400+30:1800+30"]

1. e4 {[%emt 0:00:02]} c5 {[%emt 0:00:27]} 2. Nf3 {[%emt 0:00:09]} d6 {[%emt 0:00:31]} 3. Bb5+ {[%emt 0:01:47]} Nd7 {[%emt 0:02:24]} 4. d4 {[%emt 0:00:37]} cxd4 {[%emt 0:00:46]} 5. Qxd4 {[%emt 0:00:18]} a6 6. Bc4 {[%emt 0:05:29]} Ngf6 {[%emt 0:05:53]} 7. Nc3 {[%emt 0:01:22]} e6 {[%emt 0:00:58]} 8. a4 {[%emt 0:07:55]} Be7 {[%emt 0:00:59]} 9. Be3 {[%emt 0:05:39]} O-O {[%emt 0:01:20]} 10. h3 {[%emt 0:01:04]} b6 {[%emt 0:00:46]} 11. g4 {[%emt 0:00:23]} Bb7 {[%emt 0:01:29]} 12. Qd3 {[%emt 0:05:01]} Nxe4 {[%emt 0:02:55]} 13. Nxe4 {[%emt 0:02:24]} d5 {[%emt 0:07:04]} 14. Neg5 {[%emt 0:01:19]} Bxg5 {[%emt 0:00:26]} 15. Nxg5 {[%emt 0:01:17]} Nf6 {[%emt 0:00:45]} 16. O-O-O {[%emt 0:01:28]} dxc4 {[%emt 0:00:23]} 17. Qxc4 {[%emt 0:01:23]} Qc8 {[%emt 0:02:29]} 18. Qxc8 {[%emt 0:01:33]} Raxc8 {[%emt 0:00:22]} 19. f3 {[%emt 0:00:19]} h6 {[%emt 0:00:18]} 20. Ne4 {[%emt 0:00:24]} Nxe4 {[%emt 0:00:23]} 21. fxe4 {[%emt 0:00:02]} Bxe4 {[%emt 0:00:19]} 22. Rh2 {[%emt 0:00:02]} Rc6 {[%emt 0:01:20]} 23. Rd4 {[%emt 0:00:05]} Bd5 {[%emt 0:03:59]} 24. Rb4 {[%emt 0:01:01]} Rb8 {[%emt 0:00:43]} 25. b3 {[%emt 0:01:54]} b5 {[%emt 0:02:07]} 26. Kb2 {[%emt 0:00:26]} Rcc8 {[%emt 0:00:46]} 27. Bf4 {[%emt 0:00:36]} Rb7 {[%emt 0:00:32]} 28. a5 {[%emt 0:01:53]} f6 29. h4 e5 {[%emt 0:01:05]} 30. Bg3 {[%emt 0:00:44]} Rbc7 {[%emt 0:00:50]} 31. Be1 {[%emt 0:00:16]} Kf7 {[%emt 0:00:38]} 32. g5 {[%emt 0:00:13]} hxg5 {[%emt 0:00:34]} 33. hxg5 {[%emt 0:00:03]} f5 {[%emt 0:00:39]} 34. Rd2 {[%emt 0:03:18]} Be4 {[%emt 0:00:52]} 35. c3 {[%emt 0:00:13]} Kg6 {[%emt 0:01:55]} 36. Rd6+ {[%emt 0:00:01]} Kxg5 {[%emt 0:00:41]} 37. Bd2+ {[%emt 0:01:22]} Kh5 {[%emt 0:02:35]} 38. Rxa6 {[%emt 0:00:10]} Bc6 {[%emt 0:00:15]} 39. Rxc6 {[%emt 0:05:03]} Rxc6 {[%emt 0:00:21]} 40. Rxb5 {[%emt 0:00:11]} Re6 {[%emt 0:03:51]} 41. Be3 {[%emt 0:36:04]} Kg4 {[%emt 0:30:31]} 42. a6 f4 {[%emt 0:02:34]} 43. a7 {[%emt 0:03:15]} fxe3 {[%emt 0:00:16]} 44. Rb8 {[%emt 0:00:09]} Ra6 {[%emt 0:00:50]} 45. Rxc8 {[%emt 0:00:06]} Rxa7 {[%emt 0:00:13]} 46. Kc2 {[%emt 0:00:05]} Rd7 {[%emt 0:02:52]} 0-1

[Event "WSTCC-65 2024"]
[Site "Krakow"]
[Date "2024.07.07"]
[Round "6.20"]
[White "Murray, Jim G."]
[Black "Beier, Thomas"]
[Result "1/2-1/2"]
[ECO "A50"]
[WhiteElo "1884"]
[BlackElo "1538"]
[Annotator "NA RC"]
[PlyCount "129"]
[EventDate "2024.07.01"]
[EventType "team-tourn"]
[EventCountry "POL"]
[SourceTitle "playchess.com"]
[Source "ChessBase"]
[SourceQuality "1"]
[TimeControl "40/5400+30:1800+30"]

1. d4 {[%emt 0:00:06]} Nf6 {[%emt 0:00:08]} 2. c4 {[%emt 0:00:06]} d5 {[%emt 0:00:36]} 3. cxd5 {[%emt 0:00:22]} Nxd5 {[%emt 0:00:11]} 4. e4 {[%emt 0:00:11]} Nb6 {[%emt 0:00:36]} 5. Nc3 {[%emt 0:00:28]} e6 {[%emt 0:02:16]} 6. Nf3 {[%emt 0:00:44]} Be7 {[%emt 0:03:19]} 7. Be2 {[%emt 0:01:54]} Nc6 {[%emt 0:03:27]} 8. O-O {[%emt 0:00:29]} O-O {[%emt 0:03:08]} 9. Be3 {[%emt 0:01:34]} f5 {[%emt 0:01:55]} 10. exf5 {[%emt 0:07:16]} exf5 {[%emt 0:00:45]} 11. Qb3+ {[%emt 0:22:29]} Kh8 {[%emt 0:03:30]} 12. Rad1 {[%emt 0:00:53]} f4 {[%emt 0:02:01]} 13. Bc1 {[%emt 0:01:28]} Na5 {[%emt 0:07:45]} 14. Qb5 {[%emt 0:02:59]} Nc6 {[%emt 0:04:12]} 15. Qb3 {[%emt 0:19:24]} a6 {[%emt 0:07:54]} 16. Ne5 {[%emt 0:02:51]} Nxe5 {[%emt 0:01:52]} 17. dxe5 {[%emt 0:00:46]} Qe8 {[%emt 0:01:07]} 18. Bf3 {[%emt 0:02:58]} Qf7 {[%emt 0:02:32]} 19. Qxf7 {[%emt 0:03:19]} Rxf7 {[%emt 0:00:08]} 20. Nd5 {[%emt 0:00:40]} Nxd5 {[%emt 0:03:01]} 21. Bxd5 {[%emt 0:00:13]} Rf5 {[%emt 0:07:04]} 22. Rfe1 {[%emt 0:03:27]} c6 {[%emt 0:03:07]} 23. Bb3 {[%emt 0:00:34]} b5 {[%emt 0:04:44]} 24. Bc2 {[%emt 0:07:09]} Rf8 {[%emt 0:00:43]} 25. Be4 {[%emt 0:01:51]} Be6 {[%emt 0:04:55]} 26. Bxc6 Rad8 {[%emt 0:08:50]} 27. Rxd8 {[%emt 0:03:30]} Bxd8 {[%emt 0:00:29]} 28. a3 {[%emt 0:04:16]} Bb6 {[%emt 0:02:32]} 29. Bb7 {[%emt 0:05:46]} Bc8 {[%emt 0:06:15]} 30. Bxc8 {[%emt 0:01:42]} Rxc8 {[%emt 0:00:03]} 31. e6 {[%emt 0:00:25]} g5 {[%emt 0:02:52]} 32. Bd2 {[%emt 0:02:06]} a5 {[%emt 0:05:31]} 33. Bc3+ {[%emt 0:00:48]} Kg8 {[%emt 0:00:02]} 34. Kf1 {[%emt 0:01:47]} Kf8 {[%emt 0:01:00]} 35. Re5 {[%emt 0:01:32]} Rc5 {[%emt 0:05:41]} 36. e7+ {[%emt 0:00:59]} Ke8 {[%emt 0:00:17]} 37. Re6 {[%emt 0:00:12]} Bc7 {[%emt 0:01:20]} 38. Ke2 {[%emt 0:00:53]} b4 {[%emt 0:01:23]} 39. axb4 {[%emt 0:00:31]} axb4 {[%emt 0:00:15]} 40. Rh6 {[%emt 0:00:28]} bxc3 {[%emt 0:00:53]} 41. bxc3 {[%emt 0:30:02]} Re5+ {[%emt 0:30:17]} 42. Kf3 {[%emt 0:00:00]} Rxe7 {[%emt 0:00:00]} 43. h4 {[%emt 0:00:00]} gxh4 {[%emt 0:00:00]} 44. Rxh4 {[%emt 0:00:00]} Rd7 {[%emt 0:00:00]} 45. Ke2 {[%emt 0:00:00]} Kf8 {[%emt 0:00:00]} 46. g3 {[%emt 0:00:00]} fxg3 {[%emt 0:00:00]} 47. fxg3 {[%emt 0:00:00]} Bxg3 {[%emt 0:00:00]} 48. Rh3 {[%emt 0:00:00]} Bd6 {[%emt 0:00:00]} 49. Rd3 {[%emt 0:00:00]} h5 {[%emt 0:00:00]} 50. c4 {[%emt 0:00:00]} h4 {[%emt 0:00:00]} 51. Kf1 {[%emt 0:00:00]} Rf7+ {[%emt 0:00:00]} 52. Kg2 {[%emt 0:00:00]} Bg3 {[%emt 0:00:00]} 53. Rf3 {[%emt 0:00:00]} Rxf3 {[%emt 0:00:00]} 54. Kxf3 {[%emt 0:00:00]} Ke7 {[%emt 0:00:00]} 55. Kg2 {[%emt 0:00:00]} Kd6 {[%emt 0:00:00]} 56. Kh1 {[%emt 0:00:00]} Kc5 {[%emt 0:00:00]} 57. Kg2 {[%emt 0:00:00]} Kxc4 {[%emt 0:00:00]} 58. Kg1 {[%emt 0:00:00]} Kd3 {[%emt 0:00:00]} 59. Kg2 {[%emt 0:00:00]} Ke3 {[%emt 0:00:00]} 60. Kh1 {[%emt 0:00:00]} Bf2 {[%emt 0:00:00]} 61. Kg2 {[%emt 0:00:00]} Ke2 {[%emt 0:00:00]} 62. Kh1 {[%emt 0:00:00]} Kf3 {[%emt 0:00:00]} 63. Kh2 {[%emt 0:00:00]} Bg3+ {[%emt 0:00:00]} 64. Kh1 {[%emt 0:00:00]} Kg4 {[%emt 0:00:00]} 65. Kg2 {[%emt 0:00:00]} 1/2-1/2